bitfinex-derivatives/quotes_ETHF0:USTF0_20241027
["timestamp","ask_amount","ask_price","bid_price","bid_amount"]
[1730065467622,0.99515,2515.1,2514.6,2.48454419]
[1730065467818,0.99515,2515.1,2514.6,2.88267419]
[1730065468219,0.39811,2514.7,2514.6,2.48454419]
[1730065468421,0.99515,2515.1,2514.6,2.88266419]
[1730065468718,0.39811,2514.7,2514.6,0.39812]
[1730065470421,0.99515,2515.1,2514.6,6.85946419]
[1730065470616,0.99515,2515.1,2514.6,2.88266419]
[1730065470813,0.39811,2514.7,2514.6,2.88266419]
[1730065471428,0.39811,2514.7,2514.6,6.85946419]
[1730065471925,0.39811,2514.7,2514.6,0.39812]
[1730065472117,0.39811,2514.7,2514.6,2.88266419]
[1730065475423,0.39811,2514.7,2514.6,0.39812]
[1730065477726,0.39811,2514.7,2514.6,3.60592]
[1730065478929,0.39720109,2515.0,2514.6,3.60592]
[1730065479131,0.39811,2514.7,2514.6,3.60592]
[1730065481832,0.39811,2514.7,2514.6,3.2078]
[1730065482528,0.99523,2514.9,2514.6,4.22455786]
[1730065482729,1e-05,2514.7,2514.6,4.22455786]
[1730065483432,1e-05,2514.7,2514.6,4.82410624]
[1730065484135,0.39812,2514.7,2514.6,4.82410624]
[1730065484333,0.39812,2514.7,2514.6,4.94861869]
[1730065484525,0.39812,2514.7,2514.6,10.95289009]
[1730065484526,2e-05,2514.7,2514.6,10.95289009]
[1730065484726,2e-05,2514.7,2514.6,8.39385081]
[1730065484929,0.39811,2514.7,2514.6,8.1946309]
[1730065485330,0.39811,2514.7,2514.6,3.33231245]
[1730065486332,0.39811,2514.7,2514.6,3.33231493]
[1730065486538,0.431,2514.8,2514.2,3.2078]
[1730065486735,0.39818,2514.3,2514.2,3.2078]
[1730065487133,0.39821,2514.1,2514.0,2.48454419]
[1730065487333,0.39821,2514.1,2514.0,5.69234419]
[1730065489143,0.39821,2514.1,2514.0,2.48454419]
[1730065489441,0.39822,2514.0,2513.9,3.2078]
[1730065492136,4.37582,2514.0,2513.9,3.2078]
[1730065492334,0.39822,2514.0,2513.9,3.2078]
[1730065492535,4.20314,2514.6,2513.9,7.1854]
[1730065492729,0.9954,2514.5,2514.1,2.48454419]
[1730065492934,0.3982,2514.2,2514.1,2.48454419]
[1730065493835,0.99541,2514.4,2513.9,3.6274]
[1730065494036,0.39822,2514.1,2513.9,3.6274]
[1730065494831,0.39822,2514.1,2513.9,0.4196]
[1730065495040,0.39822,2514.1,2514.0,3.9776]
[1730065495244,0.39822,2514.1,2513.8,5.69234419]
[1730065495444,0.39822,2514.1,2513.8,9.66994419]
[1730065496042,0.39822,2514.1,2513.8,5.69234419]
[1730065496940,0.39824,2514.0,2513.8,5.69234419]
[1730065497841,0.9955,2514.2,2513.8,5.69234419]
[1730065498241,0.99545,2514.3,2513.8,3.2078]
[1730065498242,0.39824,2514.0,2513.8,3.2078]
[1730065498439,0.9955,2514.2,2513.8,3.2078]
[1730065498741,0.39824,2513.9,2513.8,3.2078]
[1730065499140,0.9955,2514.2,2513.8,7.1854]
[1730065499445,0.39824,2513.9,2513.8,3.2078]
[1730065499839,0.39824,2513.9,2513.8,7.1854]
[1730065500139,0.39824,2513.9,2513.8,3.2078]
[1730065500845,0.3982,2514.2,2513.8,9.66994419]
[1730065501038,3.2078,2515.3,2514.1,8.17688838]
[1730065501239,0.99491,2515.7,2515.0,3.2078]
[1730065501537,0.39787,2516.3,2515.5,3.2078]
[1730065501736,0.39786,2516.3,2516.2,2.48454419]
[1730065501938,0.39785,2516.4,2516.0,3.2078]
[1730065502141,5.817,2516.6,2516.0,3.2078]
[1730065502142,0.39784,2516.5,2516.0,3.2078]
[1730065502345,5.817,2516.6,2516.0,3.2078]
[1730065502541,5.817,2516.6,2516.4,2.48454419]
[1730065502741,5.817,2516.6,2516.5,3.9736]
[1730065503243,1.56920507,2516.8,2516.5,3.9736]
[1730065503439,0.39768,2517.5,2516.9,2.48454419]
[1730065503642,0.39768,2517.5,2516.2,2.48454419]
[1730065503643,0.39763,2517.8,2517.4,3.2078]
[1730065503846,0.39765,2517.7,2517.4,3.2078]
[1730065504048,0.39765,2517.7,2517.3,2.48454419]
[1730065504049,0.39765,2517.7,2517.3,5.69234419]
[1730065504344,0.00397125,2518.1,2517.8,0.39762]
[1730065504657,0.00397125,2518.1,2518.0,5.69234419]
[1730065505141,0.00397125,2518.1,2518.0,9.66354419]
[1730065505545,3.2078,2518.9,2518.0,9.66354419]
[1730065505741,3.2078,2518.9,2518.7,2.48454419]
[1730065506046,3.2078,2519.3,2518.7,5.69234419]
[1730065506449,3.60519,2519.3,2518.7,6.262754]
[1730065506839,0.39741,2519.2,2518.7,6.262754]
[1730065507041,3.2078,2519.3,2518.7,3.2078]
[1730065507247,0.39743,2519.1,2518.7,3.2078]
[1730065507742,3.2078,2519.3,2518.7,3.2078]
[1730065507939,0.39747,2518.8,2518.7,3.2078]
[1730065508141,3.2078,2519.3,2518.7,3.2078]
[1730065508341,0.39747,2518.8,2518.7,3.2078]
[1730065508752,0.39747,2518.8,2518.4,3.054954]
[1730065508753,0.39751,2518.5,2518.4,6.262754]
[1730065509050,0.39751,2518.5,2518.4,3.2078]
[1730065509241,0.39755,2518.3,2518.2,3.2078]
[1730065509547,2.093,2518.9,2518.2,3.2078]
[1730065509856,0.39754,2518.3,2518.2,3.2078]
[1730065510753,0.39759,2518.1,2517.9,3.054954]
[1730065510950,0.39757,2518.2,2518.0,3.9712]
[1730065511248,0.39757,2518.2,2517.9,3.054954]
[1730065511555,0.39757,2518.2,2518.0,3.9712]
[1730065511951,0.39757,2518.2,2518.1,3.9712]
[1730065512248,0.39757,2518.2,2518.1,3.2078]
[1730065512452,0.39758,2518.1,2517.9,3.054954]
[1730065512645,0.39758,2518.1,2518.0,3.2078]
[1730065513249,0.99376,2518.6,2517.9,3.054954]
[1730065513250,0.39759,2518.0,2517.9,3.054954]
[1730065513649,0.39759,2518.0,2517.9,7.026154]
[1730065513853,0.39759,2518.0,2517.9,3.054954]
[1730065514351,3.2078,2518.4,2517.9,3.054954]
[1730065514549,0.39759,2518.0,2517.9,3.054954]
[1730065515349,4.20167,2518.4,2517.5,3.2078]
[1730065515554,0.39764,2517.7,2517.6,3.054954]
[1730065516056,0.39764,2517.7,2517.6,7.026954]
[1730065517054,0.39763,2517.8,2517.6,7.026954]
[1730065517257,0.39764,2517.7,2517.6,3.054954]
[1730065517655,0.39764,2517.7,2517.6,7.026954]
[1730065517861,0.39764,2517.7,2517.6,3.054954]
[1730065518051,0.39764,2517.7,2517.6,7.026954]
[1730065518249,0.39764,2517.7,2517.6,3.054954]
[1730065519250,3.2078,2518.4,2517.6,3.054954]
[1730065519456,0.39759,2518.0,2517.9,3.054954]
[1730065519759,3.2078,2518.4,2517.5,6.262754]
[1730065519760,0.39761,2517.9,2517.5,6.262754]
[1730065519961,0.39763,2517.8,2517.6,3.2078]
[1730065520159,0.99392,2518.2,2517.6,3.2078]
[1730065520353,0.39764,2517.7,2517.6,3.2078]
[1730065520759,1.44392,2518.2,2517.6,3.2078]
[1730065521059,4.20175,2518.1,2517.2,3.054954]
[1730065521255,0.39769,2517.4,2517.2,3.054954]
[1730065521448,0.39769,2517.4,2517.3,3.2078]
[1730065521851,0.9941,2517.8,2517.3,3.9728]
[1730065522057,0.39769,2517.4,2517.3,3.2078]
[1730065522562,0.39769,2517.4,2517.3,7.1806]
[1730065523162,0.39769,2517.4,2517.3,3.2078]
[1730065523859,0.99413,2517.7,2517.2,3.054954]
[1730065524061,0.3977,2517.3,2517.2,3.054954]
[1730065525963,3.2078,2517.8,2516.9,3.2078]
[1730065526268,0.39775,2517.0,2516.9,3.2078]
[1730065526566,0.9943,2517.3,2516.8,3.054954]
[1730065526756,0.39777,2516.9,2516.8,3.054954]
[1730065527763,0.39781,2516.6,2516.5,6.262754]
[1730065528468,0.39781,2516.6,2516.5,5.69225633]
[1730065528660,0.39781,2516.6,2516.5,2.48445633]
[1730065528867,0.39781,2516.6,2516.5,5.69225633]
[1730065529369,0.39781,2516.6,2516.5,2.48445633]
[1730065530266,4.37141,2516.6,2516.5,2.48445633]
[1730065531161,3.9736,2516.6,2516.3,2.48445633]
[1730065531366,3.6184,2516.9,2516.3,2.48445633]
[1730065531367,0.39785,2516.4,2516.3,2.48445633]
[1730065531666,0.39785,2516.4,2516.3,2.88231633]
[1730065531867,0.39785,2516.4,2516.3,2.48445633]
[1730065532166,0.39788,2516.4,2516.3,2.48445633]
[1730065532363,0.99462,2516.7,2516.3,2.48445633]
[1730065532562,0.39788,2516.4,2516.3,2.48445633]
[1730065536174,3.6321,2516.6,2516.0,2.48445633]
[1730065536175,0.39793,2516.1,2516.0,2.48445633]
[1730065537171,0.39796,2515.9,2515.8,2.48445633]
[1730065538278,0.99476,2516.2,2515.8,2.48445633]
[1730065538474,0.20126,2515.9,2515.8,2.48445633]
[1730065543380,0.20126,2515.9,2515.8,2.88243633]
[1730065543673,0.20126,2515.9,2515.8,2.48445633]
[1730065547584,0.20126,2515.9,2515.8,2.88243633]
[1730065547878,0.39796,2516.0,2515.9,0.39795]
[1730065548075,0.39796,2516.0,2515.8,6.45885633]
[1730065548076,0.99473,2516.4,2516.0,3.9744]
[1730065548276,0.39794,2516.1,2516.0,0.39793]
[1730065548568,0.39793,2516.2,2516.1,0.39792]
[1730065549074,3.2078,2516.6,2516.1,3.9744]
[1730065549274,0.9946,2516.7,2516.6,0.39784]
[1730065549275,0.39784,2516.7,2516.6,0.39784]
[1730065549474,0.4106,2516.9,2516.3,2.48445633]
[1730065549678,0.39786,2516.6,2516.5,0.39786]
[1730065550176,0.39786,2516.6,2516.5,4.37146]
[1730065550577,0.39786,2516.6,2516.5,0.39786]
[1730065550974,0.99456,2516.8,2516.3,2.48445633]
[1730065551180,0.99456,2516.8,2516.4,0.39788]
[1730065551181,0.39788,2516.5,2516.4,0.39788]
[1730065552885,0.99462,2516.7,2516.3,5.69225633]
[1730065553188,0.39788,2516.4,2516.3,5.69225633]
[1730065554787,0.39788,2516.5,2516.4,0.39787]
[1730065571482,0.99456,2516.8,2516.4,0.39787]
[1730065571686,0.39786,2516.6,2516.5,0.39785]
[1730065572494,0.39785,2516.7,2516.6,0.39784]
[1730065573193,4.4748,2517.2,2516.4,0.99472]
[1730065573499,0.39784,2516.8,2516.7,0.39782]
[1730065580695,4.20221,2517.2,2516.6,3.2078]
[1730065580900,0.39781,2517.0,2516.9,0.3978]
[1730065581994,0.39781,2517.0,2516.9,4.3706]
[1730065584099,0.39779,2517.1,2517.0,0.39778]
[1730065584506,0.39779,2517.1,2517.0,4.37058]
[1730065585201,0.4283,2517.3,2517.0,3.9728]
[1730065585393,0.82605,2517.3,2517.2,0.39776]
[1730065585597,0.4123,2517.7,2517.2,0.39776]
[1730065585598,0.99409,2518.0,2517.3,0.99435]
[1730065585900,0.39767,2517.8,2517.7,2.88212633]
[1730065586095,0.39767,2517.8,2517.7,2.48445633]
[1730065586297,0.39767,2517.8,2517.7,2.88213633]
[1730065586493,4.20188,2518.1,2517.7,2.88213633]
[1730065586494,3.2078,2518.1,2517.7,6.45645633]
[1730065586700,3.2078,2518.1,2517.7,2.48445633]
[1730065586997,0.39763,2518.0,2517.7,2.48445633]
[1730065587206,0.39766,2517.9,2517.7,2.48445633]
[1730065587405,3.2078,2518.1,2518.0,0.39763]
[1730065587604,3.2078,2518.2,2518.0,2.48445633]
[1730065587801,3.2078,2518.2,2518.1,0.39762]
[1730065588199,0.39759,2518.3,2518.0,2.48445633]
[1730065588509,3.2078,2518.9,2518.1,3.2078]
[1730065588705,0.39757,2518.4,2518.1,3.2078]
[1730065588904,0.39756,2518.5,2518.4,0.39756]
[1730065589104,0.4372,2519.0,2518.9,0.39749]
[1730065589604,0.4372,2519.0,2518.9,6.85154633]
[1730065589810,3.60527,2519.3,2518.9,6.45405633]
[1730065590002,3.60527,2519.3,2519.0,0.39751]
[1730065590003,0.39748,2519.2,2519.0,0.39751]
[1730065590198,3.2078,2519.3,2519.2,0.39748]
[1730065590700,0.4541,2519.4,2519.2,0.39748]
[1730065591106,0.85155,2519.4,2519.2,0.39748]
[1730065591298,0.85155,2519.4,2519.2,0.39747]
[1730065591299,0.39745,2519.4,2519.2,0.39747]
[1730065591500,3.2078,2520.6,2519.3,11.60270924]
[1730065591699,3.2078,2520.6,2520.5,2.88173633]
[1730065591899,3.2078,2520.9,2520.7,0.39724]
[1730065592207,3.2078,2520.9,2520.5,5.69225633]
[1730065592208,9.06967772,2520.9,2520.5,5.69225633]
[1730065592509,3.2078,2521.1,2520.8,2.48445633]
[1730065592701,5.86187772,2520.9,2520.8,2.48445633]
[1730065593103,5.86187772,2520.9,2520.8,5.69225633]
[1730065593313,0.39717,2521.2,2520.8,10.05668633]
[1730065593509,0.4648,2521.6,2521.1,2.48445633]
[1730065593806,0.39717,2521.2,2521.1,2.48445633]
[1730065594008,0.39717,2521.2,2520.8,3.2078]
[1730065594009,5.86187772,2521.2,2520.9,2.48445633]
[1730065594208,0.4648,2521.6,2520.9,2.48445633]
[1730065594209,0.3972,2521.0,2520.9,2.48445633]
[1730065594413,6.25907772,2521.0,2520.9,2.48445633]
[1730065594712,5.86187772,2521.0,2520.9,2.48445633]
[1730065595010,6.25907772,2521.0,2520.9,2.48445633]
[1730065595712,6.25907772,2521.0,2520.5,0.39727]
[1730065595713,0.39724,2520.8,2520.6,2.48445633]
[1730065595911,6.25912772,2520.7,2520.6,2.48445633]
[1730065597105,0.39725,2520.7,2520.6,2.48445633]
[1730065597315,0.4472,2521.2,2520.6,2.48445633]
[1730065597512,5.86187772,2520.9,2520.5,3.2078]
[1730065597704,0.39721,2520.9,2520.8,2.48445633]
[1730065598107,6.25908772,2520.9,2520.8,2.48445633]
[1730065601911,6.25908772,2520.9,2520.3,0.3973]
[1730065601912,5.86187772,2520.9,2520.6,2.48445633]
[1730065602113,0.39725,2520.7,2520.6,2.48445633]
[1730065602307,5.86187772,2520.7,2520.2,2.48445633]
[1730065602610,0.39734,2520.1,2520.0,2.48445633]
[1730065603011,6.25921772,2520.1,2520.0,2.48445633]
[1730065605814,5.66271086,2520.1,2520.0,2.48445633]
[1730065606410,6.06005086,2520.1,2520.0,2.48445633]
[1730065611824,0.3974,2519.8,2519.7,2.48445633]
[1730065612328,6.06011086,2519.8,2519.7,2.48445633]
[1730065617637,6.06011086,2519.8,2519.3,3.2078]
[1730065617638,0.39742,2519.6,2519.5,2.48445633]
[1730065617844,6.06013086,2519.6,2519.5,2.48445633]
[1730065618341,6.49663086,2519.6,2519.5,2.48445633]
[1730065621639,0.39745,2519.4,2519.3,6.08972633]
[1730065621846,6.06016086,2519.4,2519.3,5.69225633]
[1730065624145,5.66271086,2519.4,2519.3,6.08972633]
[1730065624545,6.06016086,2519.4,2519.3,6.08972633]
[1730065624744,5.66271086,2519.4,2519.3,6.08972633]
[1730065625050,6.06016086,2519.4,2519.3,6.08972633]
[1730065626349,6.06016086,2519.4,2519.3,5.69225633]
[1730065626648,5.66271086,2519.4,2519.3,6.08972633]
[1730065626850,6.06016086,2519.4,2519.3,5.69225633]
[1730065627049,6.06016086,2519.4,2519.3,6.08972633]
[1730065628745,5.66271086,2519.4,2519.3,6.08972633]
[1730065634255,0.3974,2519.8,2519.3,6.08972633]
[1730065634451,0.9138,2520.3,2519.7,3.2078]
[1730065634749,9.203,2521.7,2520.2,2.48445633]
[1730065634750,3.2078,2521.0,2520.2,2.48445633]
[1730065634946,5.66271086,2520.7,2520.6,2.88171633]
[1730065636252,5.66271086,2520.7,2520.6,0.39726]
[1730065636457,6.05996086,2520.7,2520.6,0.39726]
[1730065636754,5.66271086,2520.7,2520.6,0.39726]
[1730065638449,6.05996086,2520.7,2520.6,0.39726]
[1730065639452,0.99287,2521.4,2520.6,6.45165633]
[1730065639653,6.05992086,2521.0,2520.9,2.48445633]
[1730065641051,5.8266,2521.5,2520.9,2.48445633]
[1730065641252,5.66271086,2521.1,2520.9,2.48445633]
[1730065641460,5.66271086,2521.1,2521.0,0.3972]
[1730065642253,0.39715,2521.3,2521.1,0.39718]
[1730065642451,5.66271086,2521.1,2520.9,2.48445633]
[1730065642654,5.66271086,2521.1,2521.0,0.39719]
[1730065642962,5.3008,2521.5,2520.9,2.48445633]
[1730065643154,5.66271086,2521.3,2520.9,2.72005633]
[1730065643353,5.66271086,2521.3,2521.2,0.39717]
[1730065644157,5.66271086,2521.3,2521.2,2.88162633]
[1730065646257,2.093,2521.5,2521.4,0.39714]
[1730065646456,2.093,2521.5,2521.4,2.88159633]
[1730065646762,2.093,2521.7,2521.6,0.3971]
[1730065647059,5.66271086,2521.7,2521.6,0.3971]
[1730065648960,2.093,2521.8,2521.7,0.39709]
[1730065649153,2.093,2521.8,2521.7,6.08934633]
[1730065649761,2.093,2521.9,2521.7,6.08934633]
[1730065649963,3.2078,2523.3,2521.8,7.69005633]
[1730065650274,0.39687,2523.1,2523.0,2.48445633]
[1730065650853,8.54965086,2523.1,2523.0,2.48445633]
[1730065651162,8.15278086,2523.1,2523.0,2.48445633]
[1730065651365,8.54965086,2523.1,2523.0,2.48445633]
[1730065651759,0.3969,2522.9,2522.8,5.69225633]
[1730065651962,0.3969,2522.9,2522.8,2.48445633]
[1730065652160,8.15278086,2522.9,2522.5,5.69225633]
[1730065652363,8.54973086,2522.6,2522.5,5.69225633]
[1730065652560,0.39698,2522.4,2522.3,2.48445633]
[1730065652861,8.15278086,2522.4,2522.0,2.48445633]
[1730065653063,8.54981086,2522.1,2522.0,2.48445633]
[1730065655962,9.05661086,2522.1,2522.0,2.48445633]
[1730065657070,0.39707,2521.8,2521.7,3.2078]
[1730065657275,8.54985086,2521.8,2521.7,5.69225633]
[1730065658368,8.54985086,2521.8,2521.7,3.2078]
[1730065658568,8.54985086,2521.8,2521.7,5.69225633]
[1730065659769,8.54985086,2521.8,2521.7,2.48445633]
[1730065666577,0.3971,2521.6,2521.5,2.88156633]
[1730065666966,8.54988086,2521.6,2521.5,2.88156633]
[1730065670572,0.39714,2521.5,2521.4,0.39713]
[1730065670770,0.39714,2521.5,2521.4,2.88158633]
[1730065670966,9.08642086,2521.5,2521.4,2.88158633]
[1730065672579,9.08642086,2521.5,2521.4,2.48445633]
[1730065672880,9.08642086,2521.5,2521.4,2.88159633]
[1730065673882,9.08642086,2521.5,2521.3,3.2078]
[1730065673883,8.68928086,2521.5,2521.3,3.2078]
[1730065674176,8.54992086,2521.4,2521.3,3.2078]
[1730065674385,0.39715,2521.3,2521.2,2.88161633]
[1730065674575,8.54993086,2521.3,2521.2,2.88161633]
[1730065675580,8.54993086,2521.3,2521.2,0.39716]
[1730065675777,8.54993086,2521.3,2521.2,2.88161633]
[1730065676082,8.54993086,2521.3,2521.2,2.48445633]
[1730065676569,8.54993086,2521.3,2521.2,2.88162633]
[1730065676977,8.54993086,2521.3,2521.2,2.48445633]
[1730065677773,8.15278086,2521.3,2521.0,3.2078]
[1730065677970,8.54996086,2521.1,2521.0,3.605]
[1730065678178,8.54996086,2521.1,2521.0,6.08945633]
[1730065679777,8.54996086,2521.1,2521.0,2.48445633]
[1730065680082,8.54996086,2521.1,2521.0,2.88165633]
[1730065681183,8.15278086,2521.1,2520.8,2.48445633]
[1730065681389,8.54999086,2520.9,2520.8,2.48445633]
[1730065681579,8.54999086,2520.9,2520.8,2.88168633]
[1730065682881,8.54999086,2520.9,2520.8,0.39723]
[1730065685384,8.15278086,2520.9,2520.6,5.69225633]
[1730065685689,8.55003086,2520.7,2520.6,6.08950633]
[1730065685989,8.55003086,2520.7,2520.6,2.48445633]
[1730065686582,0.39728,2520.5,2520.4,0.39728]
[1730065686876,8.55006086,2520.5,2520.4,0.39728]
[1730065688688,0.39731,2520.4,2520.3,0.3973]
[1730065688890,9.06639086,2520.4,2520.3,0.3973]
[1730065689088,0.39731,2520.3,2520.2,3.60512]
[1730065689287,9.03939086,2520.3,2520.2,3.60512]
[1730065690293,9.03939086,2520.3,2520.2,3.2078]
[1730065694591,8.64208086,2520.3,2519.6,4.20135]
[1730065694893,8.15278086,2519.7,2519.6,3.60522]
[1730065696492,8.55018086,2519.7,2519.6,3.60522]
[1730065697792,8.55018086,2519.7,2519.6,3.2078]
[1730065698196,0.39744,2519.5,2519.4,2.48445633]
[1730065698493,8.15278086,2519.5,2519.3,0.39746]
[1730065698693,8.15278086,2519.5,2519.2,3.2078]
[1730065698694,0.39747,2519.3,2519.2,3.2078]
[1730065698892,8.55025086,2519.3,2519.2,3.60528]
[1730065700104,8.15278086,2519.3,2519.2,3.60528]
[1730065700592,4.54745086,2518.9,2518.6,2.48445633]
[1730065700797,4.54745086,2518.7,2518.6,2.88203633]
[1730065702094,0.39758,2518.6,2518.5,3.60539]
[1730065702302,4.94503086,2518.6,2518.5,3.2078]
[1730065703294,4.54745086,2518.6,2518.1,3.2078]
[1730065703592,4.94510086,2518.2,2518.0,2.88211633]
[1730065703795,4.54745086,2518.1,2518.0,2.88211633]
[1730065705393,4.94512086,2518.1,2517.9,0.39768]
[1730065705596,4.54745086,2518.0,2517.8,3.7067]
[1730065705796,4.54745086,2517.9,2517.8,4.10439]
[1730065706991,4.94514086,2517.9,2517.8,3.7067]
[1730065707204,4.94514086,2517.9,2517.8,3.2078]
[1730065708399,4.54745086,2517.9,2517.8,3.2078]
[1730065708608,4.54745086,2517.9,2517.8,3.6055]
[1730065709705,4.94514086,2517.9,2517.8,3.2078]
[1730065710601,4.94514086,2517.9,2517.8,3.6055]
[1730065710796,4.54745086,2517.9,2517.8,3.6055]
[1730065711101,0.5218,2518.2,2517.9,0.39769]
[1730065711102,0.39769,2518.0,2517.9,0.39769]
[1730065711307,4.94514086,2518.0,2517.9,0.39769]
[1730065711609,4.94514086,2518.0,2517.8,3.2078]
[1730065711909,0.5218,2518.2,2517.8,3.60549]
[1730065712205,4.94513086,2518.0,2517.8,3.2078]
[1730065712408,4.94513086,2518.0,2517.9,0.39769]
[1730065713408,4.94513086,2518.0,2517.9,0.92609]
[1730065713600,4.94513086,2518.0,2517.9,0.39769]
[1730065714303,0.39769,2517.9,2517.8,3.60549]
[1730065714509,4.94514086,2517.9,2517.8,3.60549]
[1730065714904,4.54745086,2517.9,2517.8,3.60549]
[1730065717020,3.95049848,2517.9,2517.8,3.60549]
[1730065717307,3.95049848,2517.9,2517.8,6.08994633]
[1730065717808,3.2078,2518.4,2518.2,0.39764]
[1730065718207,3.2078,2518.4,2517.8,6.68648633]
[1730065718208,4.34813848,2518.3,2517.9,1.39192]
[1730065718406,3.95049848,2518.0,2517.9,0.39769]
[1730065720714,0.3977,2517.8,2517.7,4.12211]
[1730065720905,0.3977,2517.8,2517.7,6.60656633]
[1730065721208,0.3977,2517.8,2517.7,3.7244]
[1730065721410,0.3977,2517.8,2517.7,3.2078]
[1730065721907,0.39777,2517.4,2517.3,0.5014]
[1730065722107,0.39778,2517.3,2517.2,2.88224633]
[1730065722309,4.34827848,2517.3,2517.2,0.39779]
[1730065724616,4.34827848,2517.3,2516.9,3.98047633]
[1730065724913,4.34827848,2517.3,2517.2,0.3978]
[1730065724914,0.39778,2517.3,2517.2,0.3978]
[1730065725314,4.34827848,2517.3,2517.2,0.3978]
[1730065725916,0.3978,2517.2,2517.1,0.3978]
[1730065726314,3.95049848,2517.2,2517.1,0.3978]
[1730065727216,7.55609848,2517.2,2517.1,0.3978]
[1730065727412,7.15829848,2517.2,2517.1,0.3978]
[1730065727614,7.55609848,2517.2,2517.1,0.3978]
[1730065729612,7.15829848,2517.2,2515.6,1.02017203]
[1730065729811,0.39786,2516.9,2516.8,0.39786]
[1730065730325,0.39786,2516.8,2516.7,0.39787]
[1730065730725,0.39788,2516.7,2516.6,0.39789]
[1730065730918,3.95049848,2516.5,2516.4,2.48445633]
[1730065731128,3.95049848,2516.5,2516.4,2.88238633]
[1730065732026,4.34840848,2516.5,2516.4,0.39793]
[1730065732321,4.34840848,2516.5,2516.2,2.88239633]
[1730065732322,3.95049848,2516.5,2516.2,2.88239633]
[1730065732511,7.15829848,2516.3,2516.2,0.39794]
[1730065733017,7.73199848,2516.3,2516.2,0.39794]
[1730065733222,8.12993848,2516.3,2516.2,0.39794]
[1730065733421,8.12993848,2516.3,2515.7,0.99509]
[1730065733422,8.12994848,2516.3,2516.1,0.39796]
[1730065733611,4.17945,2516.3,2516.1,0.39796]
[1730065733816,3.95049848,2516.2,2516.1,0.39796]
[1730065734922,4.34845848,2516.2,2516.1,0.39796]
[1730065735917,3.95049848,2516.2,2516.1,0.39796]
[1730065736721,0.39798,2516.1,2516.0,0.39798]
[1730065736920,0.39796,2516.2,2516.1,0.39797]
[1730065737316,3.95049848,2516.2,2516.1,0.39797]
[1730065737919,3.2078,2516.3,2516.2,0.39796]
[1730065738118,7.15829848,2516.3,2516.2,0.39796]
[1730065738514,3.2078,2516.7,2516.2,2.48445633]
[1730065738722,3.95049848,2516.5,2516.4,0.39793]
[1730065739122,3.95049848,2516.5,2516.4,0.97513]
[1730065740120,3.95049848,2516.5,2516.4,0.39793]
[1730065743123,3.2078,2516.8,2516.4,0.39793]
[1730065743331,3.95049848,2516.5,2516.4,0.39793]
[1730065743824,3.2078,2516.8,2516.7,0.39788]
[1730065744225,7.15829848,2516.8,2516.7,0.39788]
[1730065746126,7.15829848,2516.8,2516.3,0.99486]
[1730065746325,3.95049848,2516.5,2516.4,0.39793]
[1730065754930,3.95049848,2516.5,2516.1,6.68717633]
[1730065754931,3.95049848,2516.5,2516.1,4.20272]
[1730065755135,1.48813,2516.4,2516.2,0.39794]
[1730065755530,3.95049848,2516.3,2516.2,0.39794]
[1730065755729,4.34843848,2516.3,2516.2,0.39794]
[1730065756130,4.34843848,2516.3,2515.9,0.99498]
[1730065756131,4.34844848,2516.3,2515.9,0.99498]
[1730065756332,3.95049848,2516.1,2516.0,0.39799]
[1730065757840,4.34846848,2516.1,2516.0,0.39799]
[1730065758040,3.95049848,2516.1,2516.0,0.39799]
[1730065758430,0.398,2516.0,2515.7,0.39804]
[1730065758634,3.95049848,2515.8,2515.7,0.39804]
[1730065764238,4.92151848,2515.8,2515.7,0.39804]
[1730065764640,4.92151848,2515.8,2515.4,0.99521]
[1730065764840,0.97102,2515.8,2515.7,0.39804]
[1730065765345,4.92151848,2515.8,2515.7,0.39804]
[1730065766138,8.12931848,2515.8,2515.7,0.39804]
[1730065767940,8.12931848,2515.8,2515.4,0.99521]
[1730065768140,4.17882,2515.8,2515.6,0.39804]
[1730065768549,3.95049848,2515.7,2515.6,0.39804]
[1730065768957,3.7808,2515.8,2515.2,0.99526]
[1730065769261,3.7808,2515.8,2515.2,0.3981]
[1730065769262,3.95049848,2515.3,2515.2,0.3981]
[1730065770254,3.95049848,2515.3,2515.1,0.39812]
[1730065770455,3.60588,2515.5,2515.1,0.39812]
[1730065770655,4.50179848,2515.2,2515.1,0.39812]
[1730065772556,4.50179848,2515.2,2515.0,0.39813]
[1730065772757,0.5513,2515.2,2515.0,0.39813]
[1730065773061,3.95049848,2515.1,2515.0,0.39813]
[1730065777362,3.95049848,2515.1,2514.7,7.26244633]
[1730065777363,3.95049848,2515.1,2514.9,0.39815]
[1730065777566,3.95049848,2515.0,2514.9,0.39815]
[1730065778770,3.95049848,2515.0,2514.8,0.39816]
[1730065778971,0.39813,2515.1,2514.8,0.39816]
[1730065779163,3.95049848,2514.9,2514.8,0.39816]
[1730065781972,4.34865848,2514.9,2514.7,0.39819]
[1730065782166,3.95049848,2514.8,2514.7,0.39819]
[1730065784376,4.93827848,2514.8,2514.7,0.39819]
[1730065784567,0.98778,2514.8,2514.3,0.99564]
[1730065784868,3.95049848,2514.4,2514.3,0.39825]
[1730065787763,4.34874848,2514.4,2514.0,4.47592633]
[1730065787974,3.95049848,2514.1,2514.0,2.88275633]
[1730065790375,3.95049848,2514.1,2514.0,0.3983]
[1730065791471,0.39831,2514.0,2513.7,3.7958]
[1730065791669,4.82125,2514.3,2513.9,0.39832]
[1730065791868,0.39829,2514.1,2513.9,0.39832]
[1730065792072,4.34879848,2514.0,2513.9,0.39832]
[1730065792268,4.34879848,2514.0,2513.8,0.39832]
[1730065792576,3.95049848,2513.8,2513.7,4.19415]
[1730065792775,3.95049848,2513.8,2513.7,3.60615]
[1730065793180,3.95049848,2513.8,2513.4,3.8123]
[1730065793380,3.95049848,2513.5,2513.4,1.0029]
[1730065794170,3.95049848,2513.5,2513.1,2.48445633]
[1730065794474,3.95049848,2513.1,2513.0,0.39846]
[1730065794681,3.95049848,2513.1,2512.9,0.39847]
[1730065794975,3.95049848,2513.0,2512.9,0.39848]
[1730065795978,3.95049848,2513.0,2512.7,3.06485633]